Workbook

Sheet Sheet1
A1: 排序 | B1: 学号 | C1: 姓名 | D1: 必修课成绩 | E1: 综测成绩 | F1: 面试成绩 | G1: 总成绩 | H1: 优良率 | I1: 大学生英语四级 | J1: 大学生英语六级 | K1: 挂科数
A2: 1 | B2: 2016010697 | C2: 张亚楠 | D2: 92.77445255 | E2: 98.77420869 | G2: =D2*0.7+E2*0.2+F2*0.1 -> 84.69695852 | H2: 94.83% | I2: 542.0 | J2: 478.0 | K2: 0
A3: 2 | B3: 2016010711 | C3: 孙帆 | D3: 89.58029197 | E3: 96.44011577 | G3: =D3*0.7+E3*0.2+F3*0.1 -> 81.99422753 | H3: 87.93% | I3: 595.0 | J3: 577.0 | K3: 0
A4: 3 | B4: 2016010696 | C4: 张岱 | D4: 88.48613139 | E4: 93.60970348 | G4: =D4*0.7+E4*0.2+F4*0.1 -> 80.66223267 | H4: 91.38% | I4: 531.0 | J4: 429.0 | K4: 0
A5: 4 | B5: 2016010713 | C5: 徐明吕 | D5: 89.15839416 | E5: 91.08050372 | G5: =D5*0.7+E5*0.2+F5*0.1 -> 80.62697666 | H5: 94.83% | I5: 505.0 | J5: 426.0 | K5: 0
A6: 5 | B6: 2016010714 | C6: 杨欢 | D6: 86.44087591 | E6: 93.64595021 | G6: =D6*0.7+E6*0.2+F6*0.1 -> 79.23780318 | H6: 93.10% | I6: 427.0 | J6: 294.0 | K6: 0
A7: 6 | B7: 2016010716 | C7: 张睿 | D7: 84.38613139 | E7: 94.36461946 | G7: =D7*0.7+E7*0.2+F7*0.1 -> 77.94321586 | H7: 87.93% | I7: 467.0 | J7: 470.0 | K7: 0
A8: 7 | B8: 2016010694 | C8: 谭言 | D8: 83.02627737 | E8: 90.45892312 | G8: =D8*0.7+E8*0.2+F8*0.1 -> 76.21017878 | H8: 79.31% | I8: 515.0 | J8: 437.0 | K8: 0
A9: 8 | B9: 2016010684 | C9: 项怀忠 | D9: 80.72262774 | E9: 88.74603503 | G9: =D9*0.7+E9*0.2 -> 74.25504642 | H9: 75.86% | I9: 478 | K9: 0
A10: 9 | B10: 2016010709 | C10: 任政星 | D10: 81.45912409 | E10: 85.29374364 | G10: =D10*0.7+E10*0.2+F10*0.1 -> 74.08013559 | H10: 79.31% | I10: 437.0 | J10: - | K10: 0
A11: 10 | B11: 2016010705 | C11: 刘波 | D11: 80.76642336 | E11: 84.96360054 | G11: =D11*0.7+E11*0.2+F11*0.1 -> 73.52921646 | H11: 62.07% | I11: 444.0 | J11: - | K11: 1
A12: 11 | B12: 2016010688 | C12: 赵泽 | D12: 80.14963504 | E12: 85.17510614 | G12: =D12*0.7+E12*0.2 -> 73.13976575 | H12: 63.79% | I12: 523 | K12: 0
A13: 12 | B13: 2016010706 | C13: 刘成伟 | D13: 79.70291971 | E13: 86.61100801 | G13: =D13*0.7+E13*0.2+F13*0.1 -> 73.1142454 | H13: 62.07% | I13: 554.0 | J13: 433.0 | K13: 1
A14: 13 | B14: 2016010703 | C14: 雎宏伟 | D14: 79.70000000 | E14: 86.30817387 | G14: =D14*0.7+E14*0.2+F14*0.1 -> 73.05163477 | H14: 68.97% | I14: 440.0 | J14: 326.0 | K14: 1
A15: 14 | B15: 2016010718 | C15: 郑汪洋 | D15: 79.57591241 | E15: 85.67666692 | G15: =D15*0.7+E15*0.2+F15*0.1 -> 72.83847207 | H15: 58.62% | I15: 457.0 | J15: 348.0 | K15: 0
A16: 15 | B16: 2016010665 | C16: 李昆鸿 | D16: 78.87226277 | E16: 86.36955318 | G16: =D16*0.7+E16*0.2 -> 72.48449458 | H16: 67.24% | I16: 492 | K16: 1
A17: 16 | B17: 2016010710 | C17: 戎超 | D17: 78.71094891 | E17: 86.24208362 | G17: =D17*0.7+E17*0.2+F17*0.1 -> 72.34608096 | H17: 65.52% | I17: 428.0 | J17: - | K17: 0
A18: 17 | B18: 2016010662 | C18: 郭炅 | D18: 78.85401460 | E18: 85.38692721 | G18: =D18*0.7+E18*0.2 -> 72.27519566 | H18: 63.79% | I18: 449 | K18: 1
A19: 18 | B19: 2016010664 | C19: 雷湘杰 | D19: 79.12773723 | E19: 84.20399566 | G19: =D19*0.7+E19*0.2 -> 72.23021519 | H19: 72.41% | I19: 429 | K19: 0
A20: 19 | B20: 2016010700 | C20: 冯富龙 | D20: 78.76642336 | E20: 84.16722778 | G20: =D20*0.7+E20*0.2+F20*0.1 -> 71.96994191 | H20: 53.45% | I20: 443.0 | J20: 323.0 | K20: 1
A21: 20 | B21: 2016010677 | C21: 马晓桐 | D21: 79.00136861 | E21: 82.52092304 | G21: =D21*0.7+E21*0.2 -> 71.80514264 | H21: 63.79% | I21: 463 | K21: 1
A22: 21 | B22: 2016010674 | C22: 李增勇 | D22: 78.50000000 | E22: 82.75651984 | G22: =D22*0.7+E22*0.2 -> 71.50130397 | H22: 58.62% | I22: 447 | K22: 1
A23: 22 | B23: 2016010660 | C23: 陈皓荣 | D23: 77.62043796 | E23: 83.95204996 | G23: =D23*0.7+E23*0.2 -> 71.12471656 | H23: 56.90% | I23: 457 | K23: 0
A24: 23 | B24: 2016010673 | C24: 焦惊晨 | D24: 77.11313869 | E24: 84.46791755 | G24: =D24*0.7+E24*0.2 -> 70.87278059 | H24: 53.45% | I24: 524 | K24: 0
A25: 24 | B25: 2016010699 | C25: 崔越林 | D25: 76.28029197 | E25: 81.40534622 | G25: =D25*0.7+E25*0.2+F25*0.1 -> 69.67727362 | H25: 50.00% | I25: 510.0 | J25: 474.0 | K25: 0
A26: 25 | B26: 2016010693 | C26: 马晓双 | D26: 76.04817518 | E26: 82.09512942 | G26: =D26*0.7+E26*0.2+F26*0.1 -> 69.65274851 | H26: 53.45% | I26: 443.0 | J26: - | K26: 4
A27: 26 | B27: 2016010717 | C27: 赵艺凯 | D27: 75.76934307 | E27: 82.22800188 | G27: =D27*0.7+E27*0.2+F27*0.1 -> 69.48414053 | H27: 50.00% | I27: 434.0 | J27: 369.0 | K27: 2
A28: 27 | B28: 2016010685 | C28: 谢佩潭 | D28: 75.36861314 | E28: 81.75045653 | G28: =D28*0.7+E28*0.2 -> 69.10812050 | H28: 43.10% | I28: 450 | K28: 2
A29: 28 | B29: 2016010682 | C29: 万博欣 | D29: 74.71897810 | E29: 81.26472097 | G29: =D29*0.7+E29*0.2 -> 68.55622887 | H29: 46.55% | I29: 430 | K29: 2
A30: 29 | B30: 2016010701 | C30: 甘文哲 | D30: 73.91386861 | E30: 79.0191386 | G30: =D30*0.7+E30*0.2+F30*0.1 -> 67.54353575 | H30: 36.21% | I30: 436.0 | J30: - | K30: 3
A31: 30 | B31: 2016010695 | C31: 王芊 | D31: 72.78582090 | E31: 79.74671319 | G31: =D31*0.7+E31*0.2+F31*0.1 -> 66.89941727 | H31: 43.10% | I31: 423.0 | J31: - | K31: 4
A32: 31 | B32: 2016010672 | C32: 华陈杰 | D32: 72.39416058 | E32: 80.23805656 | G32: =D32*0.7+E32*0.2 -> 66.72352372 | H32: 32.76% | I32: 430 | K32: 3
A33: 32 | B33: 2016010715 | C33: 岳书膺 | D33: 72.36861314 | E33: 77.63939505 | G33: =D33*0.7+E33*0.2+F33*0.1 -> 66.18590821 | H33: 31.03% | I33: 474.0 | J33: 322.0 | K33: 3
A34: 33 | B34: 2016010676 | C34: 马文蔚 | D34: 71.70802920 | E34: 79.88970985 | G34: =D34*0.7+E34*0.2 -> 66.17356241 | H34: 50.00% | I34: 445 | K34: 3
A35: 34 | B35: 2016010689 | C35: 杜予歆 | D35: 73.03430657 | E35: 75.11317371 | G35: =D35*0.7+E35*0.2+F35*0.1 -> 66.14664934 | H35: 41.38% | I35: 443.0 | J35: - | K35: 5
A36: 35 | B36: 2016010667 | C36: 张小华 | D36: 71.52919708 | E36: 78.62299720 | G36: =D36*0.7+E36*0.2 -> 65.79503740 | H36: 46.55% | I36: 492 | K36: 7
A37: 36 | B37: 2016010675 | C37: 马硕 | D37: 71.38321168 | E37: 78.97645957 | G37: =D37*0.7+E37*0.2 -> 65.76354009 | H37: 36.21% | I37: 395 | K37: 3
A38: 37 | B38: 2016010698 | C38: 艾巴尔·努尔哈比 | D38: 70.02335766 | E38: 76.75549894 | G38: =D38*0.7+E38*0.2+F38*0.1 -> 64.36745015 | H38: 27.59% | I38: 510.0 | J38: 412.0 | K38: 5
A39: 38 | B39: 2016010692 | C39: 刘雅馨 | D39: 69.17737226 | E39: 79.14985317 | G39: =D39*0.7+E39*0.2+F39*0.1 -> 64.25413122 | H39: 29.31% | I39: 466.0 | J39: - | K39: 6
A40: 39 | B40: 2016010670 | C40: 陈旭 | D40: 69.18978102 | E40: 78.52082680 | G40: =D40*0.7+E40*0.2 -> 64.13701208 | H40: 36.21% | I40: 438 | K40: 6
A41: 40 | B41: 2016010702 | C41: 管文超 | D41: 69.68467153 | E41: 76.07334224 | G41: =D41*0.7+E41*0.2+F41*0.1 -> 63.99393852 | H41: 36.21% | I41: 486.0 | J41: 455.0 | K41: 8
A42: 41 | B42: 2016010668 | C42: 艾克拜尔·阿不都热西提 | D42: 68.65693431 | E42: 76.72571948 | G42: =D42*0.7+E42*0.2 -> 63.40499791 | H42: 24.14% | I42: 379 | K42: 4
A43: 42 | B43: 2016010707 | C43: 罗昊峰 | D43: 68.42408759 | E43: 77.48561124 | G43: =D43*0.7+E43*0.2+F43*0.1 -> 63.39398356 | H43: 31.03% | I43: 412.0 | J43: 260.0 | K43: 3
A44: 43 | B44: 2016010708 | C44: 马利 | D44: 67.02919708 | E44: 74.16454915 | G44: =D44*0.7+E44*0.2+F44*0.1 -> 61.75334779 | H44: 13.79% | I44: 360.0 | J44: - | K44: 8
A45: 44 | B45: 2016010686 | C45: 熊若尧 | D45: 66.83576642 | E45: 74.52570053 | G45: =D45*0.7+E45*0.2 -> 61.69017660 | H45: 25.86% | I45: 500 | K45: 7
A46: 45 | B46: 2016010681 | C46: 田辉 | D46: 66.23722628 | E46: 73.40416464 | G46: =D46*0.7+E46*0.2 -> 61.04689132 | H46: 20.69% | I46: 286 | K46: 10
A47: 46 | B47: 2016010663 | C47: 哈斯塔娜 | D47: 65.05109489 | E47: 72.14691036 | G47: =D47*0.7+E47*0.2 -> 59.96514849 | H47: 18.97% | K47: 9
A48: 47 | B48: 2016010683 | C48: 吴怡 | D48: 64.59124088 | E48: 73.44493347 | G48: =D48*0.7+E48*0.2 -> 59.90285531 | H48: 27.59% | I48: 393 | K48: 10
A49: 48 | B49: 2016010679 | C49: 施丰斌 | D49: 63.18978102 | E49: 71.04141477 | G49: =D49*0.7+E49*0.2 -> 58.44112967 | H49: 18.97% | K49: 9
A50: 49 | B50: 2016010712 | C50: 王砚翔 | D50: 59.46360153 | E50: 55.54161351 | G50: =D50*0.7+E50*0.2+F50*0.1 -> 52.73284377 | H50: 15.52% | I50: - | J50: - | K50: 10

Sheet Sheet2

Sheet Sheet3
